[Event "44th Chess Olympiad Open 2022"]
[Site "Chennai"]
[Date "2022.08.03"]
[Round "6.20"]
[White "Mastrovasilis, Dimitrios"]
[Black "Dardha, Daniel"]
[Result "1-0"]
[WhiteElo "2599"]
[BlackElo "2575"]
[Annotator "TA"]
[PlyCount "159"]
[EventDate "2022.??.??"]
[TimeControl "60"]

{[%evp 20,159,42,6,8,5,18,6,24,27,27,21,11,2,10,25,22,-3,0,0,0,0,21,29,16,36,
33,35,46,30,64,70,67,60,103,39,45,22,23,20,25,31,67,12,66,70,73,73,73,67,61,71,
82,63,64,64,90,122,113,0,0,0,21,0,0,0,0,8,312,316,312,300,261,284,282,274,486,
458,422,137,168,137,137,137,137,137,137,137,137,137,594,137,137,137,137,137,
137,137,137,123,137,137,137,123,410,410,593,359,485,0,137,137,130,123,130,123,
123,123,123,8,461,413,1602,1274,29971,29972,29972,29973,29973,29974,29974,
29975,29975,29976,29976,29977,29977,29978,29979,29980,29980,29980]} 1. e4 {
[%emt 0:00:05]} c5 {[%emt 0:00:05]} 2. Nf3 {[%emt 0:00:09]} Nc6 {[%emt 0:00:11]
} 3. d4 {[%emt 0:00:11]} cxd4 {[%emt 0:00:08]} 4. Nxd4 {[%emt 0:00:08]} Nf6 {
[%emt 0:00:09]} 5. Nc3 {[%emt 0:00:10]} e5 {[%emt 0:00:04]} 6. Ndb5 {[%emt 0:
00:00]} d6 {[%emt 0:00:12]} 7. Bg5 {[%emt 0:00:21]} a6 {[%emt 0:00:05]} 8. Na3
{[%emt 0:00:09]} b5 {[%emt 0:00:06]} 9. Nd5 {[%emt 0:00:27]} Be7 {[%emt 0:00:
00][%cal Yf8e7,Ye7f6,Yf6g5]} 10. Bxf6 {[%emt 0:00:14]} Bxf6 {[%emt 0:00:00]}
11. c4 {[%emt 0:00:19]} b4 {[%emt 0:01:12] B33: Sicilian: Pelikan and
Sveshnikov Variations.} 12. Nc2 {[%emt 0:00:11]} O-O {[%emt 0:02:32] now
scores much better than the old 12...a5.} 13. g3 {[%emt 0:00:39]} Be6 {[%emt 0:
00:00] The position is equal.} 14. Bg2 {[%emt 0:02:17]} Bg5 {[%emt 0:02:26] is
the legacy move (14...Bxd5).} 15. O-O {[%emt 0:01:27]} a5 {[%emt 0:12:43]} 16.
Qd3 {[%emt 0:02:24]} Ne7 {[%emt 0:04:05]} 17. h4 {[%emt 0:03:58]} Bh6 {[%emt 0:
00:00]} 18. Nde3 $5 {[%emt 0:01:46] Exploring less charted territory.} Bxe3 {
[%emt 0:03:55]} 19. Nxe3 {[%emt 0:00:24]} Qc7 {[%emt 0:00:16]} 20. Rad1 {
[%emt 0:12:37] [#]} Rad8 $146 {[%emt 0:00:32]} ({Predecessor:} 20... Rfd8 21.
Rd2 Rac8 22. b3 Qc5 23. Nf5 Rc7 24. Qf3 Kf8 25. Rfd1 Rcd7 26. Bh3 Ng8 {1-0 (52)
Heberla,B (2563)-Lagunow,R (2411) Gorzow Wielkopolski 2018}) 21. Rd2 {[%emt 0:
00:00]} Qc5 {[%emt 0:01:35]} 22. b3 {[%emt 0:04:13]} g6 {[%emt 0:00:18]} 23.
Kh2 {[%emt 0:02:12]} Kg7 {[%emt 0:01:32]} 24. Rfd1 {[%emt 0:05:40]} Ng8 {
[%emt 0:08:40]} 25. Qe2 {[%emt 0:13:41]} Nf6 {[%emt 0:03:39]} 26. Rd3 {[%emt 0:
00:00]} Rd7 {[%emt 0:02:36]} 27. R1d2 {[%emt 0:09:08]} (27. f4 $1 $16 {[%cal
Rf4f5]}) 27... h5 {[%emt 0:03:57][%cal Ya5a4]} 28. f3 {[%emt 0:08:44]} (28. f4
$5 {[%cal Rf4f5]}) 28... a4 {[%emt 0:07:33]} 29. Bh3 {[%emt 0:03:40]} axb3 {
[%emt 0:02:13]} 30. axb3 {[%emt 0:00:03]} Ra8 {[%emt 0:00:14]} 31. Nc2 {
[%emt 0:05:23]} (31. Bxe6 $14 fxe6 32. Nd1) 31... Ra2 {[%emt 0:11:06]} ({
Black should play} 31... Bxh3 $11 32. Kxh3 Ra2) 32. Bxe6 $14 {[%emt 0:04:01]}
fxe6 {[%emt 0:00:14] [#]} 33. Nd4 $1 {[%emt 0:00:08]} Rxd2 {[%emt 0:02:00]} 34.
Nxe6+ {[%emt 0:00:08]} Kf7 {[%emt 0:00:28]} 35. Ng5+ {[%emt 0:00:05]} Ke7 {
[%emt 0:00:11]} 36. Qxd2 {[%emt 0:08:24]} Ra7 {[%emt 0:00:09]} 37. Nh3 {
[%emt 0:00:39]} Ra1 {[%emt 0:02:47]} 38. Qh6 {[%emt 0:02:51]} Ra2+ {[%emt 0:00:
00]} 39. Rd2 {[%emt 0:02:44] Chess con chili.} (39. Kh1 $1 $16 Ra1+ 40. Kg2
Ra2+ 41. Kh1 Ra1+ 42. Kg2 Ra2+ 43. Kf1 Ra1+ 44. Kg2) 39... Rxd2+ $11 {[%emt 0:
00:00]} 40. Qxd2 {[%emt 0:00:03] Endgame Hoping for Qh6. KQN-KQN} Qa5 $1 {
[%emt 0:02:26]} 41. Kg2 {[%emt 0:35:25]} (41. Nf2 $5 {[%cal Rf2d3]}) 41... Qa3
{[%emt 0:33:13]} 42. Qe3 {[%emt 0:00:00] White wants to play c5.} Qb2+ {
[%emt 0:00:00]} 43. Nf2 {[%emt 0:00:00] Threatening c5.} Nd7 {[%emt 0:00:00]
Inhibits c5.} (43... Qc2 $11) 44. Qg5+ $1 $18 {[%emt 0:00:00]} Kf7 {[%emt 0:00:
00]} 45. Qd8 {[%emt 0:00:00]} Nc5 {[%emt 0:00:00]} 46. Qxd6 {[%emt 0:00:00]}
Qd4 {[%emt 0:00:00]} 47. Qd5+ {[%emt 0:00:00]} Qxd5 $2 {[%emt 0:00:00]} (47...
Kf8 48. Qc6 Kf7 49. Qc7+ Kg8) 48. cxd5 {[%emt 0:00:00] KN-KN} ({Less strong is
} 48. exd5 Ke7 49. Kf1 Nxb3 $18) 48... Ke7 {[%emt 0:00:00]} 49. Kf1 $2 {
[%emt 0:00:00]} (49. g4 $18 {and White stays clearly on top.}) 49... Kd6 {
[%emt 0:00:00]} 50. Ke1 {[%emt 0:00:00] aiming for f4.} Nxb3 {[%emt 0:00:26]}
51. Nd3 {[%emt 0:00:00]} Nd4 {[%emt 0:00:05]} 52. Nxb4 {[%emt 0:00:00]} Nxf3+ {
[%emt 0:00:07]} 53. Ke2 {[%emt 0:00:00]} Nd4+ {[%emt 0:00:00]} 54. Ke3 {
[%emt 0:00:00]} Nb5 $2 {[%emt 0:05:33]} (54... Nb3 $16 {is tougher.} 55. Nc6
Nc5) 55. Kd3 $2 {[%emt 0:00:00]} (55. Nc6 $1 $18 {Threatens to win with Kd3.}
Nc3 56. Na5 Nd1+ 57. Kf3) 55... Nd4 $16 {[%emt 0:00:00]} 56. Nc2 {[%emt 0:00:
00]} Nb3 {[%emt 0:00:25]} 57. Ne1 {[%emt 0:00:01]} Nc5+ {[%emt 0:01:21]} 58.
Ke3 {[%emt 0:00:01]} Nd7 {[%emt 0:00:52]} 59. Nf3 {[%emt 0:00:33]} Nc5 {
[%emt 0:02:58]} 60. Ng5 {[%emt 0:00:33] Nf7+ is the strong threat.} Ke7 {
[%emt 0:01:21] Prevents Nf7.} 61. Kd2 {[%emt 0:00:28]} Nb7 $2 {[%emt 0:01:29]}
(61... Kd6 $16 {was necessary.} 62. Kc3 Nd7) 62. Kd3 $1 $18 {[%emt 0:02:01]}
Nd6 {[%emt 0:00:28]} (62... Na5 $142 63. Nf3 Kd6) 63. Nf3 {[%emt 0:01:51]} Kf6
{[%emt 0:01:50]} 64. Ng5 $2 {[%emt 0:01:59]} (64. Nd2 $1 $18 {and the rest is
easy. Black must now prevent Nc4.} g5 65. Nc4 gxh4 66. gxh4 (66. Nxd6 $2 h3 $19
)) 64... Ke7 $16 {[%emt 0:00:16]} 65. Kc3 {[%emt 0:00:00]} Nb5+ {[%emt 0:01:41]
} 66. Kb4 {[%emt 0:01:26]} Nd6 {[%emt 0:00:25]} 67. Kc5 {[%emt 0:01:31] And
now Kc6 would win.} Kd7 {[%emt 0:00:04]} 68. Kb6 $1 {[%emt 0:00:05]} Nc4+ {
[%emt 0:02:33]} 69. Kb7 {[%emt 0:00:09]} (69. Ka6 $16) 69... Nd6+ $2 {[%emt 0:
02:18]} (69... Nd2 $1 $11 {and Black is okay.}) 70. Kb8 $1 $18 {[%emt 0:00:02]}
Nc4 {[%emt 0:01:37]} (70... Kd8 $142 71. Ne6+ Ke7) 71. Nf7 $1 {[%emt 0:01:44]}
Ke7 {[%emt 0:02:14] [#]} 72. Kc7 $1 {[%emt 0:01:01] White mates.} Kxf7 {
[%emt 0:00:10] KN-KP} (72... Na3 73. Nxe5) 73. d6 {[%emt 0:00:02]} Na3 {
[%emt 0:00:53]} 74. d7 {[%emt 0:00:12]} Nb5+ {[%emt 0:00:04]} 75. Kb6 {[%emt 0:
00:49]} Ke7 {[%emt 0:00:17]} 76. Kxb5 {[%emt 0:00:06]} Kxd7 {[%emt 0:00:02]}
77. Kc5 {[%emt 0:00:07]} Ke6 {[%emt 0:00:00] [#]} 78. Kc6 $1 {[%emt 0:00:11]}
Kf6 {[%emt 0:00:10]} 79. Kd6 {[%emt 0:00:00]} g5 {[%emt 0:00:03]} 80. Kd5 {
[%emt 0:00:34] Weighted Error Value: White=0.32/Black=0.35} ({And not} 80.
hxg5+ Kxg5 81. Kxe5 Kg4 $11) 1-0

[Event "44th Chess Olympiad Open 2022"]
[Site "Chennai"]
[Date "2022.08.03"]
[Round "6.20"]
[White "Banikas, Hristos"]
[Black "Maerevoet, Sim"]
[Result "1-0"]
[WhiteElo "2598"]
[BlackElo "2409"]
[Annotator "TA"]
[PlyCount "127"]
[EventDate "2022.??.??"]
[TimeControl "60"]

{[%evp 9,127,3,57,0,4,0,0,0,0,0,0,0,10,-9,19,-29,23,25,31,28,24,22,32,39,33,32,
30,12,25,0,0,0,0,0,10,14,11,0,0,0,0,0,0,0,0,0,0,5,12,7,42,33,274,274,274,0,274,
274,274,274,281,0,274,0,0,0,0,0,0,0,274,274,274,0,0,0,0,0,0,0,0,0,0,0,0,0,0,0,
0,0,12835,12835,12836,12836,12837,12837,12837,12838,12838,0,12838,12839,12839,
12839,12841,12839,12840,12840,12845,12842,12844,12844,12845,12846,12846,12847,
12847,12847,12850,12850]} 1. c4 {[%emt 0:00:06]} e5 {[%emt 0:00:24]} 2. Nc3 {
[%emt 0:00:07]} Nf6 {[%emt 0:00:07]} 3. Nf3 {[%emt 0:00:18]} e4 {[%emt 0:00:39]
} 4. Ng5 {[%emt 0:03:12]} c6 {[%emt 0:00:36]} 5. d3 {[%emt 0:21:42]} d5 {
[%emt 0:12:24] [#]} (5... exd3 $11 6. e4 (6. Qxd3 Na6 $11) (6. exd3 d5 $11)
6... Bb4) 6. dxe4 $146 {[%emt 0:00:32] A22: English Opening: 1...e5 2 Nc3 Nf6.}
({White should try} 6. cxd5 $14 exd3 7. dxc6 (7. Qxd3 cxd5 8. Bf4 Nc6 $11) 7...
Nxc6 8. exd3 (8. Qxd3 Qxd3 9. exd3 Nb4 $11)) ({Predecessor:} 6. cxd5 cxd5 7.
dxe4 d4 8. Qb3 Qd7 9. Nd5 Nxd5 10. exd5 Na6 11. Bd2 Be7 12. g3 {1-0 (67)
Adamski,J (2229)-Arndt,S (2166) Germany 2017}) 6... h6 $11 {[%emt 0:10:41]} 7.
e5 {[%emt 0:04:00] And now Nxf7 would win.} hxg5 {[%emt 0:03:51]} 8. exf6 {
[%emt 0:00:05] The position is equal.} d4 {[%emt 0:02:03]} 9. fxg7 {[%emt 0:00:
00]} Bxg7 {[%emt 0:00:48]} 10. Ne4 {[%emt 0:00:02]} Bf5 $1 {[%emt 0:08:33]} 11.
Ng3 {[%emt 0:06:14]} ({Wrong is} 11. Bxg5 $2 f6 12. Bf4 (12. Ng3 $2 fxg5 13.
Nxf5 Qa5+ 14. Qd2 Qxf5 $19) 12... Bxe4 $19) 11... Bg6 {[%emt 0:03:29]} 12. e4 {
[%emt 0:00:05]} (12. e3 $1 {is superior.}) 12... dxe3 {[%emt 0:02:47]} (12...
Nd7 $142) 13. Qxd8+ {[%emt 0:00:18]} Kxd8 {[%emt 0:00:05]} 14. Bxe3 {[%emt 0:
00:00]} Bxb2 {[%emt 0:00:25]} 15. Rd1+ {[%emt 0:00:06]} (15. Bxg5+ {feels
hotter.} Kc8 16. Rd1 Bc2 17. h4) 15... Kc8 {[%emt 0:11:05]} 16. Bd3 {[%emt 0:
00:00] Against Bc2} Bxd3 {[%emt 0:01:35]} 17. Rxd3 {[%emt 0:00:03]} f6 $1 {
[%emt 0:01:08]} 18. Nf5 {[%emt 0:29:34] Threatening 0-0.} Nd7 {[%emt 0:09:00]}
19. Ke2 {[%emt 0:01:51]} Ne5 {[%emt 0:03:33][%csl Yc4,Yd3]} 20. Rb3 {[%emt 0:
00:00] aiming for Nd6+.} Nxc4 {[%emt 0:00:11]} 21. Rb1 {[%emt 0:00:03]} Rxh2 {
[%emt 0:04:52]} 22. Rb4 {[%emt 0:00:16]} Nxe3 {[%emt 0:01:46]} 23. fxe3 {
[%emt 0:00:10]} Be5 {[%emt 0:00:31]} 24. Rxb7 {[%emt 0:00:13][%cal Yb4b7,Yb7c7,
Yc7c6,Yc6a6] White wants to mate with Ne7+.} Bc7 $1 {[%emt 0:01:51]} (24...
Rxg2+ $2 25. Kf3 Rd2 26. Ne7+ Kd8 27. Nxc6+ Kc8 28. Rf7 $18) 25. Ne7+ {[%emt 0:
00:21]} Kd7 {[%emt 0:00:07]} 26. Rd1+ {[%emt 0:00:07]} Kxe7 {[%emt 0:00:00]}
27. Rxc7+ {[%emt 0:00:02] Endgame KRR-KRR} Ke6 {[%emt 0:00:00]} 28. Rxc6+ {
[%emt 0:00:11]} Kf7 {[%emt 0:02:17]} 29. Kf3 {[%emt 0:00:20]} Re8 {[%emt 0:01:
30]} 30. Rd7+ {[%emt 0:02:45]} Re7 $2 {[%emt 0:00:06]} (30... Kg6 $1 $14) 31.
Rxe7+ $18 {[%emt 0:00:29]} Kxe7 {[%emt 0:00:04] KR-KR} 32. Ra6 $2 {[%emt 0:00:
04]} (32. Rc7+ $18 Ke6 33. Rxa7) 32... Rh4 $2 {[%emt 0:04:24]} (32... f5 $11)
33. g4 {[%emt 0:01:46]} (33. Rxa7+ Kd6 $16) 33... Kf7 {[%emt 0:00:31]} 34.
Rxa7+ {[%emt 0:00:14]} Ke6 {[%emt 0:03:15]} 35. Ra4 $2 {[%emt 0:00:03]} (35.
Ra8 $18) 35... Ke5 $2 {[%emt 0:01:14]} (35... Rh3+ $1 $11 {and Black has
nothing to worry.} 36. Kf2 Rh4) 36. Re4+ $2 {[%emt 0:00:19]} (36. Ra5+ $18 Ke6
37. a4) 36... Kd5 $1 $11 {[%emt 0:00:10]} 37. Rd4+ {[%emt 0:00:08]} Ke5 {
[%emt 0:00:06]} 38. a4 {[%emt 0:07:43]} Rh2 {[%emt 0:00:15]} 39. Rb4 {[%emt 0:
00:30] Rb5+ is the strong threat.} Ra2 $2 {[%emt 0:00:43]} (39... Rh3+ $11 40.
Ke2 Rh2+ 41. Kd3 Ra2) 40. Rb5+ $18 {[%emt 0:00:15]} Ke6 {[%emt 0:00:04]} 41. a5
{[%emt 0:30:06]} (41. Rb6+ $18 Ke5 42. Rb5+ Kd6 43. Rf5) 41... Ra1 $11 {
[%emt 0:35:37]} 42. Rb6+ {[%emt 0:00:00]} Ke5 {[%emt 0:00:00]} 43. Ra6 {
[%emt 0:00:00]} Rf1+ {[%emt 0:00:00]} 44. Kg2 {[%emt 0:00:00]} Ra1 {[%emt 0:00:
00]} 45. Kf2 {[%emt 0:00:00]} f5 {[%emt 0:00:00]} 46. gxf5 {[%emt 0:00:00]}
Kxf5 {[%emt 0:00:00]} 47. Ra8 {[%emt 0:00:00]} Kg4 {[%emt 0:00:00]} 48. a6 {
[%emt 0:00:00][%cal Ya5a6,Ya6a7] Hoping for a7.} Ra2+ {[%emt 0:00:00]} 49. Ke1
{[%emt 0:00:00] Strongly threatening a7.} Kg3 $2 {[%emt 0:00:00] White leaves
nothing to chance now.} (49... Kf3 $11) 50. a7 $18 {[%emt 0:00:00]} g4 {
[%emt 0:00:00]} 51. e4 $1 {[%emt 0:00:00]} Kg2 {[%emt 0:00:00]} 52. e5 {
[%emt 0:00:00]} g3 {[%emt 0:00:00] [#]} 53. Kd1 $1 {[%emt 0:00:00]} ({Inferior
is} 53. e6 Ra6 54. Kd2 Rd6+ 55. Ke3 Rxe6+ 56. Kd4 Ra6 $11) 53... Ra6 {[%emt 0:
00:00]} 54. Ke2 $2 {[%emt 0:00:00]} (54. Kd2 $18 Kg1 55. e6 Rd6+ 56. Kc3 Rxe6
57. Rg8) 54... Ra3 $2 {[%emt 0:00:00] [#]} (54... Ra5 $11) 55. Kd2 $1 {[%emt 0:
00:00] White is clearly winning.} ({Not} 55. e6 Ra6 $11) 55... Ra6 {[%emt 0:00:
00]} 56. Ke3 {[%emt 0:00:00]} Ra4 {[%emt 0:00:00]} 57. Kd3 {[%emt 0:00:00]} Ra6
{[%emt 0:00:00]} 58. Kc4 {[%emt 0:00:00]} Rc6+ {[%emt 0:01:38]} 59. Kd5 {
[%emt 0:00:00]} Rc7 {[%emt 0:00:35]} 60. e6 {[%emt 0:00:00][%cal Ye5e6,Ye6e7]}
Rh7 {[%emt 0:00:09]} 61. Kd6 {[%emt 0:00:00]} Kh2 {[%emt 0:00:17]} 62. e7 {
[%emt 0:00:00]} Rh6+ {[%emt 0:00:38]} 63. Kd7 {[%emt 0:00:00]} g2 {[%emt 0:00:
43]} 64. Rg8 {[%emt 0:00:00] Weighted Error Value: White=0.38/ Black=0.45} 1-0

[Event "44th Chess Olympiad Open 2022"]
[Site "Chennai"]
[Date "2022.08.03"]
[Round "6.20"]
[White "Docx, Stefan"]
[Black "Mastrovasilis, Athanasios"]
[Result "0-1"]
[WhiteElo "2434"]
[BlackElo "2527"]
[Annotator "TA"]
[PlyCount "176"]
[EventDate "2022.??.??"]
[TimeControl "60"]

{[%evp 14,176,24,35,41,31,32,17,39,18,15,5,27,24,24,27,27,32,50,39,41,29,35,32,
65,54,52,57,97,97,110,85,112,108,113,120,117,121,118,104,118,112,103,97,97,97,
99,94,94,94,94,98,98,60,88,17,14,8,8,8,8,0,22,30,20,16,19,16,18,37,29,27,91,85,
85,85,86,92,96,68,85,85,85,41,90,22,32,8,16,15,16,14,14,14,14,14,14,14,14,14,
14,14,14,14,14,14,14,16,22,8,8,8,8,8,8,-27,-27,-27,-28,-32,-31,-32,-27,-44,-8,
-8,0,0,0,-8,-6,-45,-45,-40,0,0,0,0,0,0,0,0,0,0,0,-45,-45,-45,0,-45,-45,-67,-67,
-67,-67,-67,-67,-67,-67,-67,-67,-68,-68,-29989,-29990]} 1. e4 {[%emt 0:00:19]}
e5 {[%emt 0:00:48]} 2. Nf3 {[%emt 0:00:12]} Nc6 {[%emt 0:00:12]} 3. Bc4 {
[%emt 0:01:02]} Nf6 {[%emt 0:01:04]} 4. Ng5 {[%emt 0:03:18]} d5 {[%emt 0:00:05]
} 5. exd5 {[%emt 0:00:13]} Na5 {[%emt 0:00:15]} 6. Bb5+ {[%emt 0:00:32]} c6 {
[%emt 0:00:05]} 7. dxc6 {[%emt 0:00:15]} bxc6 {[%emt 0:00:02]} 8. Bd3 {[%emt 0:
00:00]} Nd5 {[%emt 0:01:08] C58: Two Knights: 4 Ng5 d5 5 exd5 Na5 sidelines.}
9. Nf3 {[%emt 0:01:06]} (9. Qh5 g6 10. Nxf7 gxh5 $17) 9... Bd6 {[%emt 0:00:37]}
10. O-O {[%emt 0:00:35]} Nf4 {[%emt 0:04:20] The position is equal.} 11. Nc3 {
[%emt 0:00:56] seems to push 11.Re1 aside.} Nxd3 {[%emt 0:06:32]} 12. cxd3 {
[%emt 0:00:32]} O-O {[%emt 0:00:36]} 13. Ne4 {[%emt 0:01:14]} c5 {[%emt 0:00:
00]} 14. b3 {[%emt 0:00:59]} Nc6 {[%emt 0:01:47]} 15. Ba3 {[%emt 0:01:20] [#]}
Bg4 $1 $146 {[%emt 0:03:11] An important novelty.} ({Predecessor:} 15... Nb4
16. Bxb4 cxb4 17. Re1 Bb8 18. Ng3 Qxd3 19. Nxe5 Bxe5 20. Rxe5 Be6 21. Re3 Qd4 {
½-½ (43) Aronian,L (2765)-Ding,L (2805) Saint Louis 2019}) 16. h3 {[%emt 0:
02:10]} (16. Bxc5 Bxc5 17. Rc1 (17. Nxc5 $2 Nd4 $19) 17... f5 $17) 16... Bxf3 {
[%emt 0:09:12]} 17. Qxf3 {[%emt 0:00:19]} (17. gxf3 f5 18. Nxd6 Qxd6 $17) 17...
Nd4 {[%emt 0:00:04]} 18. Qd1 {[%emt 0:01:25]} f5 {[%emt 0:00:00]} 19. Nxd6 {
[%emt 0:02:33]} Qxd6 {[%emt 0:00:01]} 20. Rc1 {[%emt 0:00:20]} Rac8 {[%emt 0:
01:04]} 21. Bb2 {[%emt 0:03:02]} Nc6 {[%emt 0:02:54][%cal Yd4c6,Yc6a5,Ya5b3]}
22. a3 {[%emt 0:10:40] Against Nb4} Qd5 {[%emt 0:12:28]} 23. Qc2 {[%emt 0:08:
39]} Na5 {[%emt 0:20:27]} 24. Rfe1 {[%emt 0:01:39]} Rfe8 {[%emt 0:00:17]} 25.
b4 {[%emt 0:00:31]} Nb3 {[%emt 0:00:18]} 26. Qc4 {[%emt 0:00:00]} Qxc4 {
[%emt 0:00:25]} 27. Rxc4 {[%emt 0:00:09]} cxb4 {[%emt 0:00:35]} 28. Rxc8 {
[%emt 0:13:54]} ({But not} 28. Rxe5 $6 Nxd2 29. Rxc8 (29. Rxb4 Rxe5 30. Bxe5
Rc1+ 31. Kh2 Nf1+ 32. Kh1 Nd2+ 33. Kh2 Nf1+ 34. Kh1 Nd2+ 35. Kh2 $11) 29...
Rxc8 30. axb4 Rc2 $11) 28... Rxc8 {[%emt 0:00:04]} 29. axb4 $16 {[%emt 0:00:00]
Endgame KRB-KRN} Rc2 {[%emt 0:02:59]} 30. Bxe5 {[%emt 0:00:00]} Rxd2 {[%emt 0:
00:20]} 31. Bf4 {[%emt 0:05:31]} Rxd3 {[%emt 0:00:38]} 32. Re7 {[%emt 0:00:07]}
Nd4 {[%emt 0:03:24]} 33. Kh2 {[%emt 0:06:51]} Nc6 {[%emt 0:01:15]} 34. Rc7 {
[%emt 0:00:35]} (34. Rb7 $1 $16) 34... Nxb4 $11 {[%emt 0:00:37]} 35. Be5 {
[%emt 0:00:09]} g6 {[%emt 0:01:04]} 36. Rg7+ {[%emt 0:00:00]} Kf8 {[%emt 0:00:
13]} 37. Rxh7 {[%emt 0:04:54]} Nc6 {[%emt 0:00:36]} 38. Bf4 {[%emt 0:02:54]} a5
{[%emt 0:01:45]} 39. Rc7 {[%emt 0:00:14]} Rc3 {[%emt 0:00:00]} 40. Bh6+ {
[%emt 0:09:35]} Ke8 {[%emt 0:03:24]} 41. Rg7 {[%emt 0:31:01]} a4 {[%emt 0:05:
29]} 42. Rxg6 {[%emt 0:00:00]} a3 {[%emt 0:08:00] [#]} (42... Kf7 $11 43. Rg7+
Ke6) 43. Rg8+ $1 $16 {[%emt 0:00:00]} ({Much weaker is} 43. Bg7 Rc5 $15) 43...
Kf7 {[%emt 0:00:31] [#]} 44. Ra8 {[%emt 0:00:00]} Rc2 {[%emt 0:03:12]} 45. Rxa3
{[%emt 0:00:00] aiming for Kg3.} Rxf2 {[%emt 0:00:05]} 46. Rg3 {[%emt 0:00:00]}
Re2 {[%emt 0:04:03]} 47. Rg7+ {[%emt 0:00:00]} Kf6 {[%emt 0:01:03]} 48. Rc7 {
[%emt 0:00:00]} Ne5 {[%emt 0:01:14]} (48... Nd8 $14) 49. Kg3 {[%emt 0:00:00]} (
49. Rc3 $16) 49... Nd3 $11 {[%emt 0:01:05][%cal Yf5f4]} 50. Rc6+ {[%emt 0:00:
00]} Kf7 {[%emt 0:01:43]} 51. Rd6 {[%emt 0:00:00]} f4+ $1 {[%emt 0:03:56]} 52.
Kf3 {[%emt 0:02:06]} Rf2+ {[%emt 0:01:19]} 53. Ke4 {[%emt 0:00:20]} Nc5+ {
[%emt 0:00:11]} 54. Kf5 {[%emt 0:01:20]} Rxg2 {[%emt 0:00:00]} 55. Bxf4 {
[%emt 0:01:14]} Rf2 {[%emt 0:00:27]} 56. Kg4 {[%emt 0:05:46]} Ne4 {[%emt 0:00:
58]} 57. Ra6 {[%emt 0:02:55]} Nf6+ {[%emt 0:01:54]} 58. Kg5 {[%emt 0:00:11]}
Ne4+ {[%emt 0:00:16]} 59. Kf5 {[%emt 0:00:19]} Ng3+ {[%emt 0:00:00]} 60. Kg4 {
[%emt 0:00:22]} Ne4 {[%emt 0:00:20]} 61. Be3 {[%emt 0:00:57]} Nf6+ {[%emt 0:00:
36]} 62. Kg5 {[%emt 0:02:18]} Ne4+ {[%emt 0:00:12]} 63. Kh4 {[%emt 0:00:22]}
Rf3 {[%emt 0:00:27]} 64. Bd4 {[%emt 0:02:18]} Rf4+ {[%emt 0:00:00]} 65. Kh5 {
[%emt 0:00:32]} Ng3+ {[%emt 0:00:33] Discovered Attack} 66. Kg5 {[%emt 0:00:31]
} Rxd4 $15 {[%emt 0:00:09] KRN-KR} 67. Ra7+ {[%emt 0:00:00]} Ke6 {[%emt 0:00:
23]} 68. Ra6+ {[%emt 0:00:07]} Ke5 {[%emt 0:00:17]} 69. Ra5+ $1 {[%emt 0:00:16]
} Ke4 {[%emt 0:00:54]} 70. h4 {[%emt 0:00:29]} Rd8 {[%emt 0:02:14]} 71. Kg4 {
[%emt 0:00:22]} Nf1 {[%emt 0:01:21]} 72. h5 {[%emt 0:00:00]} Rg8+ {[%emt 0:00:
20]} 73. Kh4 {[%emt 0:00:33]} Ng3 {[%emt 0:01:59]} 74. h6 {[%emt 0:02:33]} Nf5+
{[%emt 0:01:06]} 75. Kh5 {[%emt 0:00:18]} Rh8 {[%emt 0:00:46]} 76. Ra6 {
[%emt 0:01:07]} Kf4 {[%emt 0:00:16]} 77. Ra4+ {[%emt 0:00:28]} Ke5 {[%emt 0:00:
09]} 78. Ra6 {[%emt 0:00:02]} Ne7 {[%emt 0:00:00]} 79. Kg5 {[%emt 0:00:31]}
Rg8+ {[%emt 0:00:12]} 80. Kh5 {[%emt 0:00:06]} Kf5 {[%emt 0:00:39]} 81. Ra5+ {
[%emt 0:01:09]} Kf6 {[%emt 0:00:08]} 82. h7 {[%emt 0:00:34]} Rh8 {[%emt 0:00:
16]} 83. Ra6+ {[%emt 0:00:52]} Kf7 {[%emt 0:00:00]} 84. Kh6 {[%emt 0:00:21]}
Ng8+ $1 {[%emt 0:00:19]} 85. Kg5 {[%emt 0:00:06]} Rxh7 {[%emt 0:00:04]} 86.
Ra7+ {[%emt 0:00:11]} Ne7 {[%emt 0:00:04]} 87. Rb7 {[%emt 0:00:12]} Ke6 {
[%emt 0:00:24]} 88. Kf4 $2 {[%emt 0:00:12]} (88. Kg4 $15) 88... Nd5+ {[%emt 0:
00:05] Weighted Error Value: White=0.08 (flawless) /Black=0.08 (flawless)} 0-1